[Event "GER-ch Youth-U12 2024"]
[Site "Willingen"]
[Date "2024.05.22"]
[Round "6"]
[White "Junge, Mattheo Gabriel"]
[Black "Fadeev, Justin Michael"]
[Result "1-0"]
[ECO "C02"]
[WhiteElo "1817"]
[BlackElo "1762"]
[Annotator "NA RC"]
[PlyCount "123"]
[EventDate "2022.06.05"]
[EventType "swiss"]
[EventRounds "9"]
[EventCountry "GER"]
[SourceTitle "playchess.com"]
[Source "ChessBase"]
[SourceQuality "1"]
[TimeControl "40/4500+30:900+30"]

1. e4 {[%emt 0:00:00]} e6 {[%emt 0:00:00]} 2. d4 {[%emt 0:00:00]} d5 {[%emt 0:00:00]} 3. e5 {[%emt 0:00:00]} c5 {[%emt 0:00:00]} 4. c3 {[%emt 0:00:00]} Qb6 {[%emt 0:00:00]} 5. Nf3 {[%emt 0:00:00]} Nc6 {[%emt 0:00:00]} 6. Bd3 {[%emt 0:00:00]} cxd4 {[%emt 0:00:00]} 7. O-O {[%emt 0:00:00]} Bd7 {[%emt 0:00:00]} 8. Re1 {[%emt 0:00:00]} Nge7 {[%emt 0:00:00]} 9. h4 {[%emt 0:00:00]} Rc8 {[%emt 0:00:00]} 10. h5 {[%emt 0:00:00]} h6 {[%emt 0:00:00]} 11. Nbd2 {[%emt 0:00:00]} dxc3 {[%emt 0:00:00]} 12. bxc3 {[%emt 0:00:00]} Na5 {[%emt 0:00:00]} 13. Rb1 {[%emt 0:00:00]} Qc7 {[%emt 0:00:00]} 14. Ba3 {[%emt 0:00:00]} Qxc3 {[%emt 0:00:00]} 15. Nb3 {[%emt 0:00:00]} Nec6 {[%emt 0:00:00]} 16. Rc1 {[%emt 0:00:00]} Qxe1+ {[%emt 0:00:00]} 17. Qxe1 {[%emt 0:00:00]} Bxa3 {[%emt 0:00:00]} 18. Nxa5 {[%emt 0:00:00]} Bxc1 {[%emt 0:00:00]} 19. Nxb7 {[%emt 0:00:00]} Ba3 {[%emt 0:00:00]} 20. Nd6+ {[%emt 0:00:00]} Bxd6 {[%emt 0:00:00]} 21. exd6 {[%emt 0:00:00]} O-O {[%emt 0:07:39]} 22. Ne5 {[%emt 0:00:00]} Nxe5 {[%emt 0:03:04]} 23. Qxe5 {[%emt 0:00:00]} Rc1+ {[%emt 0:05:06]} 24. Kh2 {[%emt 0:00:00]} Rfc8 {[%emt 0:05:33]} 25. Qd4 {[%emt 0:12:23]} R1c5 {[%emt 0:12:06]} 26. Ba6 {[%emt 0:02:20]} R8c6 {[%emt 0:18:12]} 27. Bb7 {[%emt 0:00:23]} Kf8 {[%emt 0:03:13]} 28. Bxc6 {[%emt 0:01:39]} Rxc6 {[%emt 0:00:04]} 29. Qb4 {[%emt 0:00:49]} Ke8 {[%emt 0:04:55]} 30. Qb8+ {[%emt 0:00:30]} Bc8 {[%emt 0:00:09]} 31. a4 {[%emt 0:02:24]} d4 {[%emt 0:08:07]} 32. d7+ {[%emt 0:00:51]} Kxd7 {[%emt 0:00:06]} 33. Qxa7+ {[%emt 0:00:04]} Ke8 {[%emt 0:00:20]} 34. Qxd4 {[%emt 0:00:06]} f6 {[%emt 0:00:06]} 35. Qa7 {[%emt 0:02:34]} Bd7 {[%emt 0:00:45]} 36. a5 {[%emt 0:00:24]} Kd8 {[%emt 0:00:46]} 37. a6 {[%emt 0:01:14]} Rc7 {[%emt 0:00:53]} 38. Qb8+ {[%emt 0:01:13]} Rc8 {[%emt 0:00:23]} 39. Qb6+ {[%emt 0:01:02]} Ke7 {[%emt 0:01:15]} 40. a7 {[%emt 0:00:45]} Bc6 {[%emt 0:00:05]} 41. Qxc6 {[%emt 0:26:30]} Rxc6 {[%emt 0:15:17]} 42. a8=Q {[%emt 0:00:07]} Rc7 {[%emt 0:00:13]} 43. Qa6 {[%emt 0:00:25]} Rd7 {[%emt 0:00:05]} 44. Kh3 {[%emt 0:00:24]} Rd6 {[%emt 0:00:12]} 45. Qb7+ {[%emt 0:00:34]} Rd7 {[%emt 0:00:05]} 46. Qc6 {[%emt 0:00:11]} Rd8 {[%emt 0:00:22]} 47. g4 {[%emt 0:00:15]} Rd3+ {[%emt 0:00:14]} 48. Kh4 {[%emt 0:00:26]} Rd7 {[%emt 0:00:10]} 49. f4 {[%emt 0:00:17]} Rd8 {[%emt 0:00:13]} 50. Qc5+ {[%emt 0:00:32]} Ke8 {[%emt 0:00:20]} 51. Qb6 {[%emt 0:07:09]} Ke7 {[%emt 0:00:21]} 52. g5 {[%emt 0:00:43]} fxg5+ {[%emt 0:00:55]} 53. fxg5 {[%emt 0:00:07]} hxg5+ {[%emt 0:00:06]} 54. Kxg5 {[%emt 0:00:15]} Rd6 {[%emt 0:00:01]} 55. Qc7+ {[%emt 0:00:30]} Rd7 {[%emt 0:00:06]} 56. Qc5+ {[%emt 0:00:10]} Kf7 {[%emt 0:00:07]} 57. Qf2+ {[%emt 0:00:21]} Kg8 {[%emt 0:00:59]} 58. Kg6 {[%emt 0:00:16]} e5 {[%emt 0:00:08]} 59. Qa2+ {[%emt 0:01:20]} Kf8 {[%emt 0:00:05]} 60. Qa8+ {[%emt 0:00:12]} Ke7 {[%emt 0:00:03]} 61. Kxg7 {[%emt 0:00:19]} Ke6+ {[%emt 0:01:05]} 62. Kg6 {[%emt 0:00:07]} 1-0

[Event "GER-ch Youth-U12 2024"]
[Site "Willingen"]
[Date "2024.05.22"]
[Round "6"]
[White "Peglau, Paul David"]
[Black "Belin, Anton"]
[Result "1/2-1/2"]
[ECO "E11"]
[WhiteElo "1806"]
[BlackElo "1948"]
[Annotator "RC"]
[PlyCount "67"]
[EventDate "2022.06.05"]
[EventType "swiss"]
[EventRounds "9"]
[EventCountry "GER"]
[SourceTitle "playchess.com"]
[Source "ChessBase"]
[SourceQuality "1"]
[TimeControl "40/4500+30:900+30"]

1. Nf3 {[%emt 0:00:00]} d5 {[%emt 0:00:00]} 2. d4 {[%emt 0:00:00]} Nf6 {[%emt 0:00:00]} 3. c4 {[%emt 0:00:00]} e6 {[%emt 0:00:00]} 4. g3 {[%emt 0:00:00]} Bb4+ {[%emt 0:00:00]} 5. Bd2 {[%emt 0:00:00]} Be7 {[%emt 0:00:00]} 6. Bg2 {[%emt 0:00:00]} O-O {[%emt 0:00:00]} 7. O-O {[%emt 0:00:00]} c6 {[%emt 0:00:00]} 8. Qc2 {[%emt 0:00:00]} b6 {[%emt 0:00:00]} 9. Rc1 {[%emt 0:06:12]} Nbd7 {[%emt 0:00:00]} 10. a4 {[%emt 0:09:06]} Ba6 {[%emt 0:00:59]} 11. b3 {[%emt 0:02:04]} c5 {[%emt 0:08:39]} 12. Na3 {[%emt 0:10:31]} Ne4 {[%emt 0:00:00]} 13. Nb5 {[%emt 0:07:45]} Bf6 {[%emt 0:00:00]} 14. cxd5 {[%emt 0:09:02]} exd5 {[%emt 0:00:00]} 15. e3 {[%emt 0:02:55]} Bxb5 {[%emt 0:02:47]} 16. axb5 {[%emt 0:03:34]} Qe7 {[%emt 0:00:50]} 17. Be1 {[%emt 0:04:37]} Rfd8 {[%emt 0:01:33]} 18. Ra4 {[%emt 0:05:04]} Nd6 {[%emt 0:03:16]} 19. Qe2 {[%emt 0:02:26]} Nf5 {[%emt 0:05:10]} 20. Qd3 {[%emt 0:01:15]} g6 {[%emt 0:01:10]} 21. Bc3 {[%emt 0:02:36]} cxd4 {[%emt 0:05:48]} 22. exd4 {[%emt 0:00:45]} Nd6 {[%emt 0:03:00]} 23. Bb4 {[%emt 0:02:18]} Qe4 {[%emt 0:02:39]} 24. Qxe4 {[%emt 0:01:32]} Nxe4 {[%emt 0:00:19]} 25. Rc7 {[%emt 0:01:23]} Nf8 {[%emt 0:02:38]} 26. Raxa7 {[%emt 0:01:38]} Rxa7 {[%emt 0:01:20]} 27. Rxa7 {[%emt 0:00:01]} Ne6 {[%emt 0:00:12]} 28. Ne5 {[%emt 0:01:53]} Nxd4 {[%emt 0:02:14]} 29. Nxf7 {[%emt 0:05:43]} Nxb5 {[%emt 0:01:22]} 30. Nh6+ {[%emt 0:01:10]} Kh8 {[%emt 0:00:12]} 31. Nf7+ {[%emt 0:00:36]} Kg8 {[%emt 0:00:15]} 32. Nh6+ {[%emt 0:00:39]} Kh8 {[%emt 0:00:05]} 33. Nf7+ Kg8 {[%emt 0:01:03]} 34. Nh6+ 1/2-1/2

[Event "GER-ch Youth-U12 2024"]
[Site "Willingen"]
[Date "2024.05.22"]
[Round "6"]
[White "Meijers, Janis"]
[Black "Levytskyi, Oleksandr"]
[Result "1-0"]
[ECO "D14"]
[WhiteElo "1787"]
[BlackElo "1467"]
[Annotator "NA RC"]
[PlyCount "85"]
[EventDate "2022.06.05"]
[EventType "swiss"]
[EventRounds "9"]
[EventCountry "GER"]
[SourceTitle "playchess.com"]
[Source "ChessBase"]
[SourceQuality "1"]
[TimeControl "40/4500+30:900+30"]

1. d4 {[%emt 0:00:21]} d5 {[%emt 0:00:00]} 2. c4 {[%emt 0:00:00]} c6 {[%emt 0:00:00]} 3. cxd5 {[%emt 0:00:00]} cxd5 {[%emt 0:00:00]} 4. Nc3 {[%emt 0:00:00]} Nf6 {[%emt 0:00:00]} 5. Nf3 {[%emt 0:00:00]} Nc6 {[%emt 0:00:00]} 6. Bf4 {[%emt 0:00:00]} Bf5 {[%emt 0:00:00]} 7. e3 {[%emt 0:00:00]} Qb6 {[%emt 0:00:00]} 8. Bb5 {[%emt 0:00:00]} e6 {[%emt 0:00:00]} 9. O-O {[%emt 0:00:00]} Bb4 {[%emt 0:00:00]} 10. Rc1 {[%emt 0:09:05]} Bxc3 {[%emt 0:02:08]} 11. Bxc6+ {[%emt 0:00:07]} bxc6 {[%emt 0:00:08]} 12. Rxc3 {[%emt 0:04:28]} Qxb2 {[%emt 0:04:23]} 13. Rxc6 {[%emt 0:00:23]} O-O {[%emt 0:00:06]} 14. Qb3 {[%emt 0:01:01]} Qxb3 {[%emt 0:00:56]} 15. axb3 {[%emt 0:00:07]} a5 {[%emt 0:00:08]} 16. Ra1 {[%emt 0:00:31]} Rfc8 {[%emt 0:05:00]} 17. Rxa5 {[%emt 0:02:04]} h6 {[%emt 0:00:13]} 18. h3 {[%emt 0:00:50]} Kf8 {[%emt 0:01:22]} 19. Rxa8 {[%emt 0:00:59]} Rxa8 {[%emt 0:00:09]} 20. b4 {[%emt 0:00:10]} Ra1+ {[%emt 0:00:45]} 21. Kh2 {[%emt 0:00:19]} Ne4 {[%emt 0:00:55]} 22. Rc8+ {[%emt 0:11:38]} Ke7 {[%emt 0:00:31]} 23. Ne5 {[%emt 0:24:33]} Nxf2 {[%emt 0:06:28]} 24. Nc6+ {[%emt 0:03:59]} Kf6 {[%emt 0:01:09]} 25. Be5+ {[%emt 0:01:26]} Kg5 {[%emt 0:05:11]} 26. g4 {[%emt 0:15:32]} Ra2 {[%emt 0:04:28]} 27. Bf4+ {[%emt 0:08:01]} Kf6 {[%emt 0:00:38]} 28. gxf5 {[%emt 0:01:03]} Ne4+ {[%emt 0:00:09]} 29. Kg1 {[%emt 0:00:22]} Ra1+ {[%emt 0:00:04]} 30. Kg2 {[%emt 0:00:09]} Ra2+ {[%emt 0:00:03]} 31. Kf1 {[%emt 0:00:37]} Nd2+ {[%emt 0:02:40]} 32. Ke1 {[%emt 0:00:29]} Ne4 {[%emt 0:01:32]} 33. Rg8 {[%emt 0:01:48]} Ra1+ {[%emt 0:00:17]} 34. Ke2 {[%emt 0:00:05]} Ra2+ {[%emt 0:00:10]} 35. Kd1 {[%emt 0:00:20]} Nc3+ {[%emt 0:00:08]} 36. Ke1 {[%emt 0:00:31]} Kxf5 {[%emt 0:01:22]} 37. Rxg7 {[%emt 0:00:26]} Ke4 {[%emt 0:00:13]} 38. Rxf7 {[%emt 0:01:05]} Kf3 {[%emt 0:01:11]} 39. Ne5+ {[%emt 0:00:15]} Kg2 {[%emt 0:00:12]} 40. Rg7+ {[%emt 0:00:16]} Kxh3 {[%emt 0:00:29]} 41. Rg3+ {[%emt 0:15:09]} Kh4 {[%emt 0:15:17]} 42. Rg6 {[%emt 0:01:34]} Kh5 {[%emt 0:00:29]} 43. Rxh6# {[%emt 0:00:12]} 1-0

[Event "GER-ch Youth-U12 2024"]
[Site "Willingen"]
[Date "2024.05.22"]
[Round "6"]
[White "Fels, Mattis"]
[Black "Rodriguez Klasen, Ennio"]
[Result "0-1"]
[ECO "D00"]
[WhiteElo "1759"]
[BlackElo "1802"]
[Annotator "NA RC"]
[PlyCount "32"]
[EventDate "2022.06.05"]
[EventType "swiss"]
[EventRounds "9"]
[EventCountry "GER"]
[SourceTitle "playchess.com"]
[Source "ChessBase"]
[SourceQuality "1"]
[TimeControl "40/4500+30:900+30"]

1. d4 {[%emt 0:00:00]} d5 {[%emt 0:00:00]} 2. Nc3 {[%emt 0:00:00]} e6 {[%emt 0:00:00]} 3. Bf4 {[%emt 0:00:00]} a6 {[%emt 0:00:00]} 4. e3 {[%emt 0:00:00]} Nf6 {[%emt 0:00:00]} 5. g4 {[%emt 0:00:00]} h6 {[%emt 0:00:00]} 6. Bd3 {[%emt 0:00:00]} b5 {[%emt 0:00:00]} 7. f3 {[%emt 0:04:28]} c5 {[%emt 0:00:00]} 8. dxc5 {[%emt 0:03:25]} Bxc5 {[%emt 0:00:00]} 9. Qd2 {[%emt 0:05:11]} Nc6 {[%emt 0:00:00]} 10. O-O-O {[%emt 0:00:54]} Qb6 {[%emt 0:00:00]} 11. h4 {[%emt 0:04:48]} e5 {[%emt 0:01:41]} 12. b4 {[%emt 0:07:58]} Bxb4 {[%emt 0:06:25]} 13. Bg3 {[%emt 0:00:20]} Qa5 {[%emt 0:00:57]} 14. Nge2 {[%emt 0:00:22]} Ba3+ {[%emt 0:00:18]} 15. Kb1 {[%emt 0:00:36]} Qb4+ {[%emt 0:00:05]} 16. Ka1 {[%emt 0:00:13]} Qb2# {[%emt 0:00:04]} 0-1

[Event "GER-ch Youth-U12 2024"]
[Site "Willingen"]
[Date "2024.05.22"]
[Round "6"]
[White "Shevchenko, Igor"]
[Black "Stehning, Toni"]
[Result "1/2-1/2"]
[ECO "D34"]
[WhiteElo "1758"]
[BlackElo "1821"]
[Annotator "NA RC"]
[PlyCount "61"]
[EventDate "2022.06.05"]
[EventType "swiss"]
[EventRounds "9"]
[EventCountry "GER"]
[SourceTitle "playchess.com"]
[Source "ChessBase"]
[SourceQuality "1"]
[TimeControl "40/4500+30:900+30"]

1. d4 {[%emt 0:00:00]} d5 {[%emt 0:00:00]} 2. c4 {[%emt 0:00:00]} e6 {[%emt 0:00:00]} 3. Nc3 {[%emt 0:00:00]} c5 {[%emt 0:00:00]} 4. cxd5 {[%emt 0:00:00]} exd5 {[%emt 0:00:00]} 5. Nf3 {[%emt 0:00:00]} Nf6 {[%emt 0:00:00]} 6. g3 {[%emt 0:00:00]} Be6 {[%emt 0:00:00]} 7. Bg2 {[%emt 0:00:00]} Nc6 {[%emt 0:00:00]} 8. O-O {[%emt 0:01:21]} Be7 {[%emt 0:00:00]} 9. dxc5 {[%emt 0:08:48]} Bxc5 {[%emt 0:00:00]} 10. Bg5 {[%emt 0:07:33]} Be7 {[%emt 0:00:48]} 11. e3 {[%emt 0:22:38]} O-O {[%emt 0:03:23]} 12. Bxf6 {[%emt 0:12:08]} Bxf6 {[%emt 0:00:10]} 13. Rc1 {[%emt 0:01:06]} Qd7 {[%emt 0:09:38]} 14. Qd2 {[%emt 0:07:44]} Rad8 {[%emt 0:04:40]} 15. Ne2 {[%emt 0:04:18]} Bh3 {[%emt 0:10:42]} 16. Ned4 {[%emt 0:03:56]} Bxg2 {[%emt 0:00:55]} 17. Kxg2 {[%emt 0:00:06]} Rfe8 {[%emt 0:02:48]} 18. Rfd1 {[%emt 0:00:59]} Re4 {[%emt 0:02:35]} 19. Qc2 {[%emt 0:06:07]} Bxd4 {[%emt 0:02:08]} 20. Nxd4 {[%emt 0:00:04]} Nxd4 {[%emt 0:00:55]} 21. Rxd4 {[%emt 0:00:32]} Rxd4 {[%emt 0:00:35]} 22. exd4 {[%emt 0:00:04]} Qg4 {[%emt 0:00:56]} 23. Qa4 {[%emt 0:03:36]} Qe4+ {[%emt 0:01:24]} 24. Kg1 {[%emt 0:00:22]} Qe2 {[%emt 0:00:58]} 25. Qxa7 {[%emt 0:02:15]} Qxb2 {[%emt 0:00:15]} 26. Re1 {[%emt 0:00:54]} Qb4 {[%emt 0:00:42]} 27. Re5 {[%emt 0:01:30]} g6 {[%emt 0:02:09]} 28. Re3 {[%emt 0:01:09]} Rc8 {[%emt 0:01:37]} 29. Kg2 {[%emt 0:01:10]} Kg7 {[%emt 0:00:38]} 30. Rb3 {[%emt 0:01:08]} Qe1 {[%emt 0:00:32]} 31. Re3 {[%emt 0:00:34]} 1/2-1/2

[Event "GER-ch Youth-U12 2024"]
[Site "Willingen"]
[Date "2024.05.22"]
[Round "6"]
[White "Wettstein, Levin"]
[Black "Rau, Eduard"]
[Result "0-1"]
[ECO "C47"]
[WhiteElo "1753"]
[BlackElo "1756"]
[Annotator "NA RC"]
[PlyCount "156"]
[EventDate "2022.06.05"]
[EventType "swiss"]
[EventRounds "9"]
[EventCountry "GER"]
[SourceTitle "playchess.com"]
[Source "ChessBase"]
[SourceQuality "1"]
[TimeControl "40/4500+30:900+30"]

1. e4 {[%emt 0:00:00]} e5 {[%emt 0:00:00]} 2. Nf3 {[%emt 0:00:00]} Nc6 {[%emt 0:00:00]} 3. Nc3 {[%emt 0:00:00]} Nf6 {[%emt 0:00:00]} 4. d4 {[%emt 0:00:00]} exd4 {[%emt 0:00:00]} 5. Nxd4 {[%emt 0:00:00]} Bb4 {[%emt 0:00:00]} 6. Nxc6 {[%emt 0:00:00]} bxc6 {[%emt 0:00:00]} 7. Bd3 {[%emt 0:00:00]} d5 {[%emt 0:00:00]} 8. exd5 {[%emt 0:00:00]} cxd5 {[%emt 0:00:00]} 9. O-O {[%emt 0:00:00]} O-O {[%emt 0:00:00]} 10. h3 {[%emt 0:00:00]} c6 {[%emt 0:00:00]} 11. Qf3 {[%emt 0:00:00]} Be6 {[%emt 0:00:00]} 12. Bf4 {[%emt 0:00:00]} Re8 {[%emt 0:00:00]} 13. Ne2 {[%emt 0:00:00]} Bf8 {[%emt 0:00:00]} 14. Bg5 {[%emt 0:00:55]} h6 {[%emt 0:03:01]} 15. Bh4 {[%emt 0:02:36]} g5 {[%emt 0:01:12]} 16. Bg3 {[%emt 0:05:40]} c5 {[%emt 0:16:16]} 17. Nc3 {[%emt 0:04:24]} c4 {[%emt 0:05:57]} 18. Bf5 {[%emt 0:02:57]} Bg7 {[%emt 0:04:17]} 19. Rfd1 {[%emt 0:08:23]} Qb6 {[%emt 0:00:23]} 20. Rab1 {[%emt 0:03:57]} Rad8 {[%emt 0:02:57]} 21. Be5 {[%emt 0:05:18]} Bxf5 {[%emt 0:06:45]} 22. Qxf5 {[%emt 0:04:07]} d4 {[%emt 0:00:11]} 23. Bxf6 {[%emt 0:00:54]} Qxf6 {[%emt 0:01:16]} 24. Qxf6 {[%emt 0:01:17]} Bxf6 {[%emt 0:01:12]} 25. Nb5 {[%emt 0:02:54]} Re2 {[%emt 0:01:20]} 26. Rdc1 {[%emt 0:06:15]} Rd5 {[%emt 0:05:43]} 27. Kf1 {[%emt 0:04:37]} Re7 {[%emt 0:05:55]} 28. Na3 {[%emt 0:01:02]} Rc5 {[%emt 0:01:44]} 29. Rd1 {[%emt 0:02:16]} Rd7 {[%emt 0:07:30]} 30. Ke2 {[%emt 0:03:13]} Kg7 {[%emt 0:00:57]} 31. b3 {[%emt 0:06:05]} d3+ {[%emt 0:04:23]} 32. cxd3 {[%emt 0:01:50]} Re5+ {[%emt 0:00:05]} 33. Kf1 {[%emt 0:01:46]} cxd3 {[%emt 0:00:15]} 34. Nc4 {[%emt 0:00:50]} Re6 {[%emt 0:01:07]} 35. Rbc1 {[%emt 0:01:05]} Be7 {[%emt 0:00:55]} 36. a3 {[%emt 0:01:42]} f6 {[%emt 0:04:41]} 37. Rd2 {[%emt 0:01:27]} Re4 {[%emt 0:00:04]} 38. Rcd1 {[%emt 0:00:57]} Red4 {[%emt 0:00:04]} 39. Ra1 {[%emt 0:04:02]} Kg6 {[%emt 0:01:39]} 40. Nb2 {[%emt 0:01:04]} Kf5 {[%emt 0:00:20]} 41. b4 {[%emt 0:16:32]} a5 {[%emt 0:17:29]} 42. Rad1 {[%emt 0:06:31]} axb4 {[%emt 0:01:10]} 43. axb4 {[%emt 0:00:07]} Rxb4 {[%emt 0:03:58]} 44. Rxd3 {[%emt 0:01:21]} Ra7 {[%emt 0:01:36]} 45. Rf3+ {[%emt 0:02:39]} Ke4 {[%emt 0:00:53]} 46. Re1+ {[%emt 0:00:48]} Kd5 {[%emt 0:00:51]} 47. Rd3+ {[%emt 0:02:01]} Rd4 {[%emt 0:00:54]} 48. Rxd4+ {[%emt 0:01:02]} Kxd4 {[%emt 0:00:03]} 49. Nd1 {[%emt 0:01:16]} Bb4 {[%emt 0:00:22]} 50. Re3 {[%emt 0:00:00]} Ra1 {[%emt 0:00:00]} 51. Ke2 {[%emt 0:00:00]} Ra2+ {[%emt 0:00:00]} 52. Kf3 {[%emt 0:00:00]} f5 {[%emt 0:00:00]} 53. Re8 {[%emt 0:00:00]} Ra3+ {[%emt 0:00:00]} 54. Ke2 {[%emt 0:00:00]} f4 {[%emt 0:00:00]} 55. Rd8+ {[%emt 0:00:00]} Ke5 {[%emt 0:00:00]} 56. Re8+ {[%emt 0:00:00]} Kf5 {[%emt 0:00:00]} 57. Rd8 {[%emt 0:00:00]} h5 {[%emt 0:00:00]} 58. Rd5+ {[%emt 0:00:00]} Ke4 {[%emt 0:00:00]} 59. Rd8 {[%emt 0:00:00]} Ra6 {[%emt 0:00:00]} 60. f3+ {[%emt 0:00:00]} Ke5 {[%emt 0:00:00]} 61. Re8+ {[%emt 0:00:00]} Kd4 {[%emt 0:00:00]} 62. Rd8+ {[%emt 0:00:00]} Kc4 {[%emt 0:00:00]} 63. Rc8+ {[%emt 0:00:00]} Bc5 {[%emt 0:00:00]} 64. Nb2+ {[%emt 0:00:00]} Kd4 {[%emt 0:00:00]} 65. Rd8+ {[%emt 0:00:00]} Bd6 {[%emt 0:00:00]} 66. Rd7 {[%emt 0:00:00]} Rb6 {[%emt 0:00:00]} 67. Nd1 {[%emt 0:00:00]} Kc4 {[%emt 0:00:00]} 68. Rd8 {[%emt 0:00:00]} Rc6 {[%emt 0:00:00]} 69. Rd7 {[%emt 0:00:00]} Ra6 {[%emt 0:01:33]} 70. Rd8 {[%emt 0:00:00]} Ra2+ {[%emt 0:00:12]} 71. Kf1 {[%emt 0:00:00]} Bc5 {[%emt 0:00:22]} 72. Rc8 {[%emt 0:00:00]} Rd2 {[%emt 0:00:49]} 73. Ke1 {[%emt 0:00:58]} Rxg2 {[%emt 0:00:18]} 74. Nf2 {[%emt 0:01:10]} Rxf2 {[%emt 0:01:07]} 75. Rxc5+ {[%emt 0:00:28]} Kxc5 {[%emt 0:00:02]} 76. Kxf2 {[%emt 0:00:30]} Kd4 {[%emt 0:00:03]} 77. Kf1 {[%emt 0:01:30]} Ke3 {[%emt 0:00:05]} 78. Kg2 {[%emt 0:00:03]} Ke2 {[%emt 0:00:02]} 0-1

[Event "GER-ch Youth-U12 2024"]
[Site "Willingen"]
[Date "2024.05.22"]
[Round "6"]
[White "Chua, Daniel James"]
[Black "Wagener, Nicolas"]
[Result "0-1"]
[ECO "B45"]
[WhiteElo "1751"]
[BlackElo "1713"]
[Annotator "NA RC"]
[PlyCount "100"]
[EventDate "2022.06.05"]
[EventType "swiss"]
[EventRounds "9"]
[EventCountry "GER"]
[SourceTitle "playchess.com"]
[Source "ChessBase"]
[SourceQuality "1"]
[TimeControl "40/4500+30:900+30"]

1. e4 {[%emt 0:00:00]} c5 {[%emt 0:00:00]} 2. Nf3 {[%emt 0:00:00]} e6 {[%emt 0:00:00]} 3. d4 {[%emt 0:00:00]} cxd4 {[%emt 0:00:00]} 4. Nxd4 {[%emt 0:00:00]} Nf6 {[%emt 0:00:00]} 5. Nc3 {[%emt 0:00:00]} Nc6 {[%emt 0:00:00]} 6. Ndb5 {[%emt 0:00:00]} Bb4 {[%emt 0:00:00]} 7. a3 {[%emt 0:00:00]} Bxc3+ {[%emt 0:00:00]} 8. Nxc3 {[%emt 0:00:00]} d5 {[%emt 0:00:00]} 9. exd5 {[%emt 0:00:00]} exd5 {[%emt 0:00:00]} 10. Bd3 {[%emt 0:00:00]} O-O {[%emt 0:00:00]} 11. O-O {[%emt 0:00:00]} Be6 {[%emt 0:00:00]} 12. Bg5 {[%emt 0:00:00]} h6 {[%emt 0:00:00]} 13. Bh4 {[%emt 0:00:00]} Ne5 {[%emt 0:00:00]} 14. Be2 {[%emt 0:00:00]} Ng6 {[%emt 0:00:00]} 15. Bxf6 {[%emt 0:00:00]} Qxf6 {[%emt 0:00:00]} 16. Bf3 {[%emt 0:01:16]} Rad8 {[%emt 0:10:44]} 17. Qd2 {[%emt 0:06:19]} Nh4 {[%emt 0:13:29]} 18. Bxd5 {[%emt 0:10:27]} Bh3 {[%emt 0:04:15]} 19. Qe3 {[%emt 0:11:49]} Bg4 {[%emt 0:12:03]} 20. Qxa7 {[%emt 0:12:51]} Qg6 {[%emt 0:07:34]} 21. Qxb7 {[%emt 0:12:08]} Rxd5 {[%emt 0:07:55]} 22. Qxd5 {[%emt 0:01:59]} Bf3 {[%emt 0:00:46]} 23. Qxf3 {[%emt 0:01:26]} Nxf3+ {[%emt 0:00:06]} 24. Kh1 {[%emt 0:00:06]} Nh4 {[%emt 0:01:29]} 25. Rg1 {[%emt 0:00:07]} Qxc2 {[%emt 0:00:31]} 26. Rab1 {[%emt 0:00:51]} Rb8 {[%emt 0:00:33]} 27. Rbf1 {[%emt 0:00:55]} Rxb2 {[%emt 0:01:15]} 28. Nd5 {[%emt 0:00:27]} Qb3 {[%emt 0:02:39]} 29. Ne3 {[%emt 0:00:14]} Qe6 {[%emt 0:04:46]} 30. a4 {[%emt 0:02:24]} Ra2 {[%emt 0:00:25]} 31. Ra1 {[%emt 0:01:40]} Rxf2 {[%emt 0:00:49]} 32. Ra3 {[%emt 0:00:47]} Re2 {[%emt 0:03:32]} 33. Nf1 {[%emt 0:02:28]} Re1 {[%emt 0:03:12]} 34. h3 {[%emt 0:01:10]} Nxg2 {[%emt 0:01:23]} 35. Rg3 {[%emt 0:00:47]} g6 {[%emt 0:03:10]} 36. R3xg2 {[%emt 0:00:55]} Qxh3+ {[%emt 0:00:37]} 37. Nh2 {[%emt 0:00:02]} Rxg1+ {[%emt 0:00:32]} 38. Kxg1 {[%emt 0:00:45]} Qe3+ {[%emt 0:00:17]} 39. Kf1 {[%emt 0:00:10]} Qf4+ {[%emt 0:00:18]} 40. Kg1 {[%emt 0:00:01]} Qxa4 {[%emt 0:00:11]} 41. Ng4 {[%emt 0:15:07]} h5 {[%emt 0:15:22]} 42. Nf2 {[%emt 0:00:24]} Qa1+ {[%emt 0:00:39]} 43. Kh2 {[%emt 0:00:02]} Qe5+ {[%emt 0:00:21]} 44. Kg1 {[%emt 0:00:07]} Kh7 {[%emt 0:00:35]} 45. Nh3 {[%emt 0:00:10]} Kh6 {[%emt 0:00:45]} 46. Nf2 {[%emt 0:00:06]} g5 {[%emt 0:00:28]} 47. Nh3 {[%emt 0:00:04]} g4 {[%emt 0:00:24]} 48. Nf2 {[%emt 0:00:13]} g3 {[%emt 0:00:29]} 49. Nd3 {[%emt 0:00:18]} Qe3+ {[%emt 0:00:12]} 50. Nf2 {[%emt 0:00:19]} Qe1# {[%emt 0:00:43]} 0-1

[Event "GER-ch Youth-U12 2024"]
[Site "Willingen"]
[Date "2024.05.22"]
[Round "6"]
[White "Draude, Theo"]
[Black "Lanert, Theodor"]
[Result "1/2-1/2"]
[ECO "B45"]
[WhiteElo "1731"]
[BlackElo "1742"]
[Annotator "NA RC"]
[PlyCount "49"]
[EventDate "2022.06.05"]
[EventType "swiss"]
[EventRounds "9"]
[EventCountry "GER"]
[SourceTitle "playchess.com"]
[Source "ChessBase"]
[SourceQuality "1"]
[TimeControl "40/4500+30:900+30"]

1. e4 {[%emt 0:00:00]} c5 {[%emt 0:00:00]} 2. Nf3 {[%emt 0:00:00]} Nc6 {[%emt 0:00:00]} 3. d4 {[%emt 0:00:00]} cxd4 {[%emt 0:00:00]} 4. Nxd4 {[%emt 0:00:00]} Nf6 {[%emt 0:00:00]} 5. Nc3 {[%emt 0:00:00]} e6 {[%emt 0:00:00]} 6. Ndb5 {[%emt 0:00:00]} Bb4 {[%emt 0:00:00]} 7. a3 {[%emt 0:00:00]} Bxc3+ {[%emt 0:00:00]} 8. Nxc3 {[%emt 0:00:00]} d5 {[%emt 0:00:00]} 9. exd5 {[%emt 0:00:00]} exd5 {[%emt 0:00:00]} 10. Bd3 {[%emt 0:00:00]} O-O {[%emt 0:00:00]} 11. O-O {[%emt 0:00:00]} h6 {[%emt 0:00:00]} 12. h3 {[%emt 0:00:00]} Re8 {[%emt 0:00:00]} 13. Bf4 {[%emt 0:00:00]} Ne5 {[%emt 0:00:00]} 14. Bxe5 {[%emt 0:00:00]} Rxe5 {[%emt 0:00:00]} 15. Qf3 {[%emt 0:00:00]} Qe7 {[%emt 0:03:00]} 16. Rad1 {[%emt 0:00:00]} Bd7 {[%emt 0:05:35]} 17. Ne2 {[%emt 0:04:37]} Re8 {[%emt 0:09:25]} 18. Ng3 {[%emt 0:08:42]} Ne4 {[%emt 0:02:09]} 19. Bxe4 {[%emt 0:07:01]} dxe4 {[%emt 0:00:04]} 20. Qe3 {[%emt 0:01:16]} a6 {[%emt 0:05:08]} 21. Rd2 {[%emt 0:06:19]} Bc6 {[%emt 0:07:57]} 22. Rfd1 {[%emt 0:02:37]} Qc5 {[%emt 0:05:04]} 23. Ne2 {[%emt 0:02:57]} Kf8 {[%emt 0:11:20]} 24. Nd4 {[%emt 0:12:00]} f5 {[%emt 0:09:43]} 25. h4 {[%emt 0:28:22]} 1/2-1/2